bitfinex-derivatives/quotes_SOLF0:USTF0_20240906
["timestamp","ask_amount","ask_price","bid_price","bid_amount"]
[1725639518261,45.19,127.77,127.64,45.19]
[1725639518460,3.9168,127.73,127.64,45.19]
[1725639518659,49.12392263,127.77,127.66,45.19]
[1725639518854,3.9163,127.75,127.68,45.19]
[1725639519058,3.9163,127.75,127.66,45.19]
[1725639519059,45.19,127.79,127.66,45.19]
[1725639519356,49.18503515,127.79,127.66,45.19]
[1725639519565,3.99503515,127.79,127.66,45.19]
[1725639519762,45.19,127.81,127.7,45.19]
[1725639520062,45.19,127.83,127.7,45.19]
[1725639520262,45.19,127.85,127.72,45.19]
[1725639520670,571.0,127.99,127.8,45.19]
[1725639520867,45.19,127.92,127.8,45.19]
[1725639521067,45.19,127.98,127.82,45.19]
[1725639521068,1.18004952,127.91,127.82,45.19]
[1725639521262,3.90571685,128.01,127.89,45.19]
[1725639521468,1.18046136,128.0,127.89,45.19]
[1725639521766,45.19,128.17,127.84,45.19]
[1725639521767,7.8082,128.15,127.97,45.19]
[1725639521973,45.19,128.11,127.99,45.19]
[1725639522267,1.18060375,128.1,127.99,45.19]
[1725639522778,45.19,128.09,127.97,45.19]
[1725639522972,45.19,128.07,127.95,45.19]
[1725639523273,45.19,128.05,127.92,45.19]
[1725639523472,49.2017953,128.11,127.92,45.19]
[1725639523473,45.19,128.07,127.92,45.19]
[1725639523666,45.19,128.07,127.96,45.19]
[1725639523863,4.0117953,128.11,127.92,45.19]
[1725639523864,45.19,128.02,127.92,45.19]
[1725639524267,3.9108,127.92,127.86,3.9124]
[1725639524567,45.19,128.0,127.87,45.19]
[1725639524968,45.19,127.97,127.87,45.19]
[1725639525272,45.19,127.97,127.85,2.6078]
[1725639525573,3.9111,127.91,127.85,2.6078]
[1725639525775,45.19,127.97,127.85,2.6078]
[1725639526075,3.9111,127.91,127.87,45.19]
[1725639526273,45.19,127.97,127.87,45.19]
[1725639526466,45.19,128.01,127.89,45.19]
[1725639526670,151.70112052,128.03,127.91,45.19]
[1725639526869,3.9101,127.95,127.91,45.19]
[1725639527079,49.13084507,128.0,127.89,45.19]
[1725639527272,45.19,127.98,127.87,45.19]
[1725639527869,3.9115,127.9,127.87,45.19]
[1725639528078,45.19,127.98,127.87,45.19]
[1725639528468,45.19,127.96,127.87,45.19]
[1725639528676,45.19,127.96,127.85,2.6078]
[1725639529678,3.9117,127.9,127.85,2.6078]
[1725639529877,45.19,127.98,127.86,45.19]
[1725639530271,45.19,127.98,127.86,49.1026]
[1725639530879,45.19,127.98,127.86,45.19]
[1725639531177,45.19,127.96,127.85,2.6078]
[1725639531376,45.19,127.98,127.86,45.19]
[1725639532577,3.911,127.92,127.86,49.1024]
[1725639533184,3.911,127.92,127.87,3.9123]
[1725639533784,45.19,128.0,127.88,45.19]
[1725639533983,151.70112052,128.03,127.91,45.19]
[1725639534182,151.70112052,128.03,127.85,2.6078]
[1725639534183,106.51112052,128.03,127.93,45.19]
[1725639534487,45.19,128.05,127.93,45.19]
[1725639534984,45.19,128.03,127.9,45.19]
[1725639535282,3.9104,127.94,127.9,45.19]
[1725639535475,45.19,128.03,127.9,45.19]
[1725639536480,45.19,128.03,127.91,3.9108]
[1725639536892,45.19,128.03,127.9,45.19]
[1725639537192,3.9097,127.96,127.91,3.9111]
[1725639537383,45.19,128.03,127.9,45.19]
[1725639537585,7.8121,128.08,127.93,45.19]
[1725639537586,45.19,128.05,127.93,45.19]
[1725639537894,45.19,128.03,127.91,45.19]
[1725639538083,45.19,128.01,127.85,2.6078]
[1725639538280,45.19,128.01,127.89,45.19]
[1725639538480,45.19,127.99,127.87,45.19]
[1725639538688,45.19,127.99,127.87,49.1023]
[1725639538689,3.9111,127.91,127.87,49.1023]
[1725639538984,56.88105068,128.03,127.89,45.19]
[1725639539389,56.88105068,128.03,127.9,3.9113]
[1725639539390,3.91,127.95,127.9,3.9113]
[1725639539589,45.19,128.01,127.9,3.9113]
[1725639539791,45.19,127.97,127.87,45.19]
[1725639539990,45.19,127.97,127.85,51.61840073]
[1725639539991,45.19,127.95,127.85,51.61840073]
[1725639540290,45.19,127.97,127.85,51.61840073]
[1725639541587,45.19,127.97,127.86,3.9124]
[1725639541787,1.1897,128.02,127.87,45.19]
[1725639541788,45.19,127.99,127.87,45.19]
[1725639541995,101.21120884,128.03,127.91,45.19]
[1725639542196,101.21120884,128.03,127.92,3.84792644]
[1725639542492,101.21120884,128.03,127.91,45.19]
[1725639542700,45.19,128.06,127.94,45.19]
[1725639542991,45.19,128.06,127.96,45.19]
[1725639543183,45.19,128.04,127.92,1.2857]
[1725639543384,45.19,128.04,127.85,6.42840073]
[1725639543385,45.19,128.0,127.89,45.19]
[1725639543591,45.19,128.0,127.85,6.42840073]
[1725639543592,45.19,127.98,127.88,3.9117]
[1725639543797,45.19,127.98,127.85,47.7978]
[1725639543984,45.19,127.93,127.83,3.89843647]
[1725639544184,45.19,127.93,127.82,46.4757]
[1725639544185,45.19,127.93,127.82,1.2857]
[1725639544386,49.084134,127.93,127.82,1.2857]
[1725639544690,49.084134,127.93,127.83,3.9135]
[1725639544891,45.19,127.95,127.84,45.19]
[1725639545088,45.19,127.93,127.82,46.4757]
[1725639545293,3.9118,127.89,127.82,45.19]
[1725639545493,3.81512485,127.91,127.82,45.19]
[1725639545687,3.81512485,127.91,127.79,2.6085]
[1725639545688,3.9124,127.87,127.81,3.9139]
[1725639545887,49.1467155,127.91,127.8,45.19]
[1725639546189,3.9132,127.85,127.8,45.19]
[1725639546390,3.9132,127.85,127.79,2.6085]
[1725639546592,45.19,127.89,127.79,2.6085]
[1725639546783,3.9122,127.88,127.81,45.19]
[1725639546983,45.19,127.93,127.81,45.19]
[1725639547187,3.93123613,127.92,127.81,45.19]
[1725639547393,45.19,127.97,127.86,45.19]
[1725639547600,45.19,127.95,127.86,45.19]
[1725639547784,45.19,127.95,127.87,3.9123]
[1725639547985,45.19,127.95,127.83,49.19443549]
[1725639548186,45.19,127.95,127.84,3.89561505]
[1725639548495,45.19,127.98,127.86,45.19]
[1725639548699,45.19,127.95,127.83,45.19]
[1725639548901,45.19,127.93,127.81,49.104]
[1725639549192,45.19,127.91,127.79,2.6085]
[1725639549493,45.19,127.93,127.79,2.6085]
[1725639549694,45.19,127.93,127.83,45.19]
[1725639549890,3.9124,127.87,127.83,45.19]
[1725639550090,49.06113588,127.93,127.81,45.19]
[1725639550393,45.19,127.88,127.79,1.3228]
[1725639550796,45.19,127.91,127.79,46.5128]
[1725639551492,49.04939568,127.91,127.81,3.9141]
[1725639551686,49.04939568,127.91,127.79,46.5128]
[1725639551890,49.04939568,127.91,127.81,49.1039]
[1725639552091,49.04939568,127.91,127.79,1.3228]
[1725639552092,3.85939568,127.91,127.83,45.19]
[1725639552296,45.19,127.96,127.85,45.19]
[1725639552590,1.1897,127.99,127.87,45.19]
[1725639553191,3.84211312,128.0,127.91,45.19]
[1725639553598,3.9094,127.97,127.92,3.9106]
[1725639553897,3.84211312,128.0,127.91,45.19]
[1725639554399,3.9093,127.97,127.92,3.9106]
[1725639554698,7.8137,128.06,127.91,45.19]
[1725639554699,45.19,128.06,127.94,45.19]
[1725639554997,45.19,128.06,127.96,45.19]
[1725639555293,45.19,128.06,127.94,45.19]
[1725639555498,45.19,128.06,127.95,3.9096]
[1725639555686,45.19,128.06,127.94,45.19]
[1725639555887,45.19,128.04,127.92,3.9107]
[1725639556195,45.19,128.04,127.91,45.19]
[1725639557094,3.9089,127.99,127.94,3.9101]
[1725639557290,1.1905,128.08,127.91,45.19]
[1725639557291,45.19,128.06,127.91,45.19]
[1725639557498,45.19,128.06,127.95,45.19]
[1725639557697,45.19,128.04,127.91,45.19]
[1725639558196,3.9093,127.97,127.92,3.9106]
[1725639558395,3.97095771,128.02,127.93,45.19]
[1725639558591,3.97095771,128.02,127.9,46.4872]
[1725639558592,45.19,128.06,127.95,45.19]
[1725639558793,45.19,128.04,127.93,45.19]
[1725639559494,45.19,128.04,127.91,45.19]
[1725639559695,3.9098,127.96,127.91,45.19]
[1725639559894,45.19,128.06,127.94,45.19]
[1725639560098,45.19,128.08,127.99,45.19]
[1725639560290,45.19,128.11,127.99,45.19]
[1725639560688,3.9071,128.05,128.0,3.9083]
[1725639560902,49.05302149,128.11,128.01,45.19]
[1725639560903,3.86302149,128.11,128.01,45.19]
[1725639561093,1.19,128.16,128.01,45.19]
[1725639561094,45.19,128.13,128.01,45.19]
[1725639561289,1.19,128.16,127.99,1.2839]
[1725639561290,45.19,128.11,127.99,46.4739]
[1725639561490,45.19,128.11,128.01,45.19]
[1725639562208,5.0616251,128.16,128.01,45.19]
[1725639562395,1.08460382,128.15,128.05,45.19]
[1725639562596,3.8716251,128.16,128.07,45.19]
[1725639562799,45.19,128.16,128.05,45.19]
[1725639563002,49.16215997,128.16,128.05,45.19]
[1725639563497,3.97215997,128.16,128.05,45.19]
[1725639563701,45.19,128.17,128.07,45.19]
[1725639563891,49.02936406,128.17,128.07,45.19]
[1725639564393,45.19,128.21,128.09,45.19]
[1725639564591,45.19,128.21,128.11,45.19]
[1725639564797,45.19,128.21,128.09,45.19]
[1725639565103,45.19,128.19,128.09,45.19]
[1725639565499,45.19,128.19,128.08,1.3552]
[1725639565800,45.19,128.23,128.08,1.3552]
[1725639565801,45.19,128.17,128.08,1.3552]
[1725639566097,49.15083326,128.17,128.08,1.3552]
[1725639566697,49.15083326,128.17,128.03,45.19]
[1725639566698,45.19,128.15,128.03,45.19]
[1725639567097,3.906,128.08,128.03,45.19]
[1725639567295,49.12184937,128.15,128.03,45.19]
[1725639567499,45.19,128.13,128.03,45.19]
[1725639567808,49.17380526,128.13,128.01,47.8625]
[1725639568107,3.98380526,128.13,128.05,45.19]
[1725639568298,45.19,128.15,128.05,45.19]
[1725639568504,49.13239681,128.15,128.05,45.19]
[1725639569099,49.13239681,128.15,128.01,6.5802]
[1725639569100,3.9057,128.09,128.03,45.19]
[1725639569408,49.13239681,128.15,128.03,45.19]
[1725639569704,3.94239681,128.15,128.05,45.19]
[1725639570009,3.94239681,128.15,128.01,2.6725]
[1725639570010,45.19,128.11,128.01,47.8625]
[1725639570525,45.19,128.09,128.01,1.3552]
[1725639570801,3.83235883,128.15,127.93,45.19]
[1725639570802,45.19,128.04,127.93,45.19]
[1725639570992,45.19,128.06,127.95,45.19]
[1725639571396,45.19,128.04,127.92,45.19]
[1725639571601,45.19,128.02,127.91,3.9844]
[1725639571901,4.00426604,128.04,127.91,2.6983]
[1725639571902,45.19,128.0,127.91,2.6983]
[1725639572399,45.19,128.0,127.91,1.4069]
[1725639573006,45.19,128.0,127.9,45.19]
[1725639573502,45.19,127.98,127.88,46.5969]
[1725639573807,1.1883,128.03,127.86,1.2914]
[1725639573808,45.19,127.96,127.86,1.2914]
[1725639574204,45.19,127.96,127.81,1.4]
[1725639574205,45.19,127.91,127.81,1.4]
[1725639574401,3.9135,127.84,127.81,1.4]
[1725639574796,49.11142806,127.91,127.81,1.4]
[1725639576408,45.19,127.88,127.81,1.4]
[1725639576707,3.9131,127.85,127.81,1.4]
[1725639576906,45.19,127.91,127.81,1.4]
[1725639577106,49.06839546,127.91,127.81,1.4]
[1725639577502,3.87839546,127.91,127.82,45.19]
[1725639577698,45.19,127.93,127.82,45.19]
[1725639577900,49.07348368,127.93,127.82,45.19]
[1725639578105,3.9126,127.87,127.82,45.19]
[1725639578510,49.07348368,127.93,127.82,45.19]
[1725639578717,45.19,127.91,127.81,1.4]
[1725639579105,1.1904,127.94,127.81,1.4]
[1725639579106,45.19,127.88,127.81,1.4]
[1725639579301,45.19,127.92,127.81,46.59]
[1725639579608,3.9116,127.9,127.83,49.1035]
[1725639579810,49.05265023,127.94,127.84,3.99769424]
[1725639580110,3.9115,127.9,127.84,7.91089424]
[1725639580315,49.05265023,127.94,127.83,45.19]
[1725639580504,49.05265023,127.94,127.85,45.19]
[1725639580505,3.86265023,127.94,127.85,45.19]
[1725639580705,45.19,127.92,127.82,1.3259]
[1725639580903,45.19,127.9,127.81,1.4]
[1725639581408,49.07457042,127.96,127.81,1.4]
[1725639581409,45.19,127.92,127.81,1.4]
[1725639581813,45.19,127.93,127.81,1.4]
[1725639582310,3.88457042,127.96,127.81,1.4]
[1725639582311,3.9129,127.85,127.81,1.4]
[1725639582510,3.94023926,127.88,127.81,1.4]
[1725639582811,45.19,127.89,127.78,45.19]
[1725639583114,49.1713405,127.89,127.78,45.19]
[1725639584507,3.9132,127.85,127.78,49.1048]
[1725639584807,49.1713405,127.89,127.76,45.19]
[1725639584808,45.19,127.87,127.76,45.19]
[1725639585509,3.9144,127.81,127.76,45.19]
[1725639585706,45.19,127.87,127.76,45.19]
[1725639586105,3.9813405,127.89,127.75,3.91088122]
[1725639586106,3.9133,127.84,127.75,3.91088122]
[1725639586317,49.1713405,127.89,127.8,45.19]
[1725639587007,45.19,127.87,127.76,49.19607184]
[1725639587320,45.19,127.87,127.76,45.19]
[1725639587611,3.89174688,127.87,127.78,45.19]
[1725639587811,227.0,127.95,127.74,1.3709]
[1725639587812,3.9136,127.83,127.8,45.19]
[1725639588313,49.12716365,127.87,127.76,45.19]
[1725639588609,45.19,127.87,127.74,46.5609]
[1725639588807,3.9148,127.79,127.74,46.5609]
[1725639589014,3.9148,127.79,127.74,50.42484869]
[1725639589712,3.9148,127.79,127.74,46.5609]
[1725639589914,3.9151,127.78,127.74,46.5609]
[1725639590212,45.19,127.82,127.74,1.3709]
[1725639590409,250.51,127.88,127.7,45.19]
[1725639590410,45.19,127.8,127.7,45.19]
[1725639590610,49.14791441,127.8,127.7,45.19]
[1725639591304,3.9162,127.75,127.7,45.19]
[1725639591514,45.19,127.78,127.68,45.19]
[1725639592004,45.19,127.76,127.66,49.2385]
[1725639593011,45.19,127.71,127.62,45.19]
[1725639593217,45.19,127.71,127.62,3.95342443]
[1725639593414,45.19,127.71,127.6,45.19]
[1725639593719,3.9196,127.64,127.6,45.19]
[1725639594120,3.96165093,127.68,127.6,45.19]
[1725639594414,45.19,127.67,127.57,1.3642]
[1725639594621,49.13754835,127.69,127.58,45.19]
[1725639595609,3.9202,127.62,127.58,45.19]
[1725639595808,49.13754835,127.69,127.58,45.19]
[1725639596113,3.9202,127.62,127.58,45.19]
[1725639596615,49.13754835,127.69,127.58,45.19]
[1725639597516,11.69129894,127.76,127.62,45.19]
[1725639597715,45.19,127.73,127.62,45.19]
[1725639597913,45.19,127.73,127.6,45.19]
[1725639598315,45.19,127.73,127.61,3.9201]
[1725639598716,45.19,127.73,127.6,45.19]
[1725639599022,45.19,127.69,127.58,45.19]
[1725639599216,49.02125176,127.69,127.58,45.19]
[1725639599413,49.02125176,127.69,127.59,3.9208]
[1725639600022,3.9199,127.63,127.58,49.111]
[1725639600214,3.83125176,127.69,127.6,45.19]
[1725639600412,45.19,127.75,127.64,45.19]
[1725639600616,3.85979894,127.76,127.65,1.2792]
[1725639600617,45.19,127.71,127.65,1.2792]
[1725639600915,45.19,127.71,127.6,45.19]
[1725639601116,45.19,127.71,127.61,1.2792]
[1725639601525,3.9196,127.64,127.61,1.2792]
[1725639601723,49.2015644,127.67,127.61,1.2792]
[1725639602022,45.19,127.72,127.62,45.19]
[1725639602212,45.19,127.74,127.62,45.19]
[1725639602416,3.85979894,127.76,127.66,45.19]
[1725639602613,45.19,127.76,127.67,1.4048]
[1725639602813,49.1525664,127.76,127.67,1.4048]
[1725639603018,3.9164,127.74,127.69,3.9177]
[1725639603220,146.99218888,127.8,127.71,45.19]
[1725639603421,146.99218888,127.8,127.69,45.19]
[1725639603616,45.19,127.76,127.67,1.4048]
[1725639604818,3.9181,127.69,127.67,1.4048]
[1725639605022,45.19,127.79,127.68,45.19]
[1725639605320,45.19,127.74,127.67,1.4048]
[1725639605518,45.19,127.74,127.61,1.2792]
[1725639605519,45.19,127.72,127.61,1.2792]
[1725639605724,3.9193,127.65,127.61,1.2792]
[1725639605914,45.19,127.7,127.61,1.2792]
[1725639606120,3.89744908,127.7,127.61,1.2792]
[1725639606318,3.89744908,127.7,127.58,47.8433]
[1725639606319,45.19,127.66,127.58,2.6533]
[1725639606723,3.9209,127.59,127.58,1.2903]
[1725639607125,3.87667836,127.63,127.54,46.5254]
[1725639607323,3.9211,127.59,127.54,46.5254]
[1725639607524,49.15642354,127.64,127.54,1.3354]
[1725639607723,49.15642354,127.64,127.54,46.5254]
[1725639607929,3.96642354,127.64,127.54,46.5254]
[1725639608126,45.19,127.66,127.54,46.5254]
[1725639608127,45.19,127.66,127.56,45.19]
[1725639608321,3.9203,127.62,127.56,49.1117]
[1725639608524,45.19,127.68,127.56,49.05747569]
[1725639608738,46.3822,127.7,127.58,45.19]
[1725639609032,46.3822,127.7,127.59,1.3442]
[1725639609233,45.19,127.7,127.59,1.3442]
[1725639609630,45.19,127.68,127.59,1.3442]
[1725639610236,227.0,127.71,127.59,1.3442]
[1725639610237,45.19,127.66,127.59,1.3442]
[1725639610431,4.00827518,127.65,127.59,1.3442]
[1725639610637,4.00827518,127.65,127.56,49.1002254]
[1725639610638,45.19,127.66,127.56,45.19]
[1725639610832,45.19,127.66,127.54,1.3354]
[1725639610833,45.19,127.66,127.55,1.406]
[1725639611039,45.19,127.64,127.55,1.406]
[1725639611230,3.9215,127.57,127.55,1.406]
[1725639611434,45.19,127.6,127.54,1.3354]
[1725639611737,45.19,127.6,127.5,2.8151]
[1725639611938,45.19,127.55,127.5,1.406]
[1725639612141,45.19,127.55,127.44,45.19]
[1725639612436,3.90386408,127.54,127.44,49.0915107]
[1725639612634,7.8399,127.63,127.46,45.19]
[1725639612635,45.19,127.57,127.46,45.19]
[1725639612835,45.19,127.6,127.49,45.19]
[1725639613035,45.19,127.61,127.51,45.19]
[1725639613233,45.19,127.64,127.53,49.1127]
[1725639613741,3.9205,127.61,127.57,3.9215]
[1725639614035,45.19,127.66,127.57,3.9215]
[1725639614235,45.19,127.66,127.55,45.19]
[1725639614434,45.19,127.66,127.52,46.55]
[1725639614627,228.1929,127.71,127.52,46.55]
[1725639614628,45.19,127.63,127.52,46.55]
[1725639615434,3.921,127.59,127.54,3.9222]
[1725639615939,49.20690356,127.65,127.54,45.19]
[1725639616540,45.19,127.63,127.52,46.55]
[1725639617142,49.16415386,127.63,127.52,46.55]
[1725639618138,49.16415386,127.63,127.52,1.36]
[1725639618139,45.19,127.61,127.52,1.36]
[1725639619233,45.19,127.59,127.52,1.36]
[1725639619439,3.9216,127.57,127.53,3.9226]
[1725639619743,45.19,127.61,127.53,3.9226]
[1725639620034,3.9216,127.57,127.53,3.9227]
[1725639620245,45.19,127.61,127.52,1.36]
[1725639620741,251.7029,127.71,127.56,45.19]
[1725639620742,45.19,127.65,127.56,45.19]
[1725639620944,236.0275,127.71,127.56,45.19]
[1725639620945,45.19,127.68,127.56,45.19]
[1725639621241,45.19,127.68,127.56,49.04147851]
[1725639622437,236.0275,127.71,127.58,45.19]
[1725639622438,45.19,127.7,127.58,45.19]
[1725639622636,45.19,127.7,127.59,2.5504]
[1725639622943,228.1929,127.71,127.59,2.5504]
[1725639622944,227.0,127.71,127.61,45.19]
[1725639623137,3.9189,127.66,127.61,49.1101]
[1725639623332,49.14545033,127.72,127.61,45.19]
[1725639623538,1.1932,127.75,127.63,45.19]
[1725639623539,45.19,127.74,127.63,45.19]
[1725639623734,3.93227328,127.73,127.63,45.19]
[1725639624344,3.9177,127.7,127.64,3.9192]
[1725639624538,3.9177,127.7,127.63,45.19]
[1725639624734,3.9177,127.7,127.6,5.35313687]
[1725639624735,45.19,127.72,127.61,45.19]
[1725639625341,45.19,127.72,127.62,3.9199]
[1725639625547,45.19,127.72,127.61,45.19]
[1725639625841,3.93227328,127.73,127.63,45.19]
[1725639626152,45.19,127.76,127.65,45.19]
[1725639626445,49.04699357,127.76,127.65,45.19]
[1725639626638,49.04699357,127.76,127.6,5.35313687]
[1725639626838,49.04699357,127.76,127.64,45.19]
[1725639627038,49.04699357,127.76,127.66,3.9187]
[1725639627235,49.04699357,127.76,127.64,45.19]
[1725639627540,3.918,127.69,127.64,3.9192]
[1725639627738,3.918,127.69,127.62,45.19]
[1725639627739,45.19,127.74,127.62,45.19]
[1725639627945,45.19,127.74,127.6,5.35313687]
[1725639627946,45.19,127.7,127.6,5.35313687]
[1725639628140,3.9195,127.64,127.6,5.35313687]
[1725639628343,45.19,127.7,127.6,5.35313687]
[1725639628549,3.93288776,127.69,127.6,5.35313687]
[1725639628844,3.93288776,127.69,127.6,1.3385]
[1725639629044,45.19,127.67,127.6,1.3385]
[1725639629246,3.9195,127.64,127.6,5.2591]
[1725639629443,45.19,127.67,127.6,1.3385]
[1725639629643,45.19,127.67,127.59,2.5504]
[1725639629644,45.19,127.65,127.59,1.2766]
[1725639629941,45.19,127.63,127.55,1.375]
[1725639630142,45.19,127.65,127.55,2.651]
[1725639630547,7.8362,127.69,127.55,2.651]
[1725639630747,45.19,127.69,127.58,45.19]
[1725639631047,49.02030867,127.69,127.58,49.20658866]
[1725639632048,49.02030867,127.69,127.59,1.4028]
[1725639632550,3.9192,127.65,127.59,1.4028]
[1725639632752,49.02030867,127.69,127.59,1.4028]
[1725639632951,45.19,127.67,127.59,1.4028]
[1725639633148,45.19,127.7,127.59,1.4028]
[1725639633356,3.97462664,127.71,127.61,45.19]
[1725639633650,234.8327,127.74,127.63,49.1096]
[1725639633651,3.9187,127.67,127.63,49.1096]
[1725639633845,3.98177362,127.73,127.64,2.718]
[1725639634350,272.19,127.74,127.64,2.718]
[1725639634551,45.19,127.74,127.64,2.718]
[1725639634757,45.19,127.74,127.65,3.919]
[1725639634758,3.9181,127.69,127.65,3.919]
[1725639635253,45.19,127.74,127.64,10.56105999]
[1725639635254,3.9182,127.68,127.64,10.56105999]
[1725639635449,49.16785378,127.74,127.64,6.64920768]
[1725639635647,45.19,127.72,127.64,2.718]
[1725639635947,3.97785378,127.74,127.59,46.5928]
[1725639635948,45.19,127.7,127.59,46.5928]
[1725639636151,7.8324,127.75,127.6,1.2745]
[1725639636152,45.19,127.68,127.6,1.2745]
[1725639636351,3.9201,127.62,127.6,1.2745]
[1725639636658,45.19,127.7,127.6,1.2745]
[1725639636954,45.19,127.72,127.61,45.19]
[1725639637153,4.01658294,127.72,127.63,45.19]
[1725639637356,3.9184,127.68,127.63,45.19]
[1725639637555,49.16894953,127.72,127.61,45.19]
[1725639638349,3.9189,127.66,127.62,3.92]
[1725639638846,45.19,127.7,127.6,1.2745]
[1725639639155,45.19,127.74,127.63,45.19]
[1725639639355,3.9174,127.71,127.65,45.19]
[1725639639648,45.19,127.79,127.67,45.19]
[1725639639854,45.19,127.79,127.68,1.3774]
[1725639640051,45.19,127.79,127.68,2.752]
[1725639640253,45.19,127.77,127.68,2.752]
[1725639640454,3.9168,127.73,127.69,3.9178]
[1725639640753,45.19,127.77,127.68,2.752]
[1725639640957,3.9175,127.71,127.68,2.752]
[1725639641255,45.19,127.79,127.68,2.752]
[1725639641460,45.19,127.74,127.68,1.3774]
[1725639641750,3.9178,127.69,127.68,1.3774]
[1725639642151,3.9177,127.7,127.68,1.3774]
[1725639643156,45.19,127.76,127.68,1.3774]
[1725639643456,1.3332,127.79,127.68,1.3774]
[1725639643457,45.19,127.78,127.68,1.3774]
[1725639644252,3.9166,127.74,127.7,3.9174]
[1725639644651,45.19,127.78,127.68,1.3774]
[1725639644851,3.9162,127.75,127.71,3.9172]
[1725639645051,101.80218888,127.8,127.69,45.19]
[1725639645363,3.9155,127.77,127.73,3.9164]
[1725639645562,45.19,127.81,127.71,3.87372474]
[1725639645853,45.19,127.81,127.68,1.3774]
[1725639645854,45.19,127.79,127.68,1.3774]
[1725639646260,45.19,127.79,127.7,3.9175]
[1725639646557,45.19,127.79,127.68,1.3774]
[1725639646957,45.19,127.79,127.71,3.9171]
[1725639647156,45.19,127.79,127.71,3.88674152]
[1725639647457,45.19,127.81,127.7,45.19]
[1725639647863,3.9153,127.78,127.74,3.9162]
[1725639648959,3.9153,127.78,127.75,3.916]
[1725639649155,3.9149,127.79,127.72,49.10142297]
[1725639649762,3.9149,127.79,127.75,3.9159]
[1725639650262,3.9146,127.8,127.76,3.9157]
[1725639650457,2.5244,127.84,127.74,45.19]
[1725639650458,1.1912,127.84,127.74,45.19]
[1725639650664,3.9143,127.81,127.77,3.9152]
[1725639651060,1.1912,127.84,127.76,1.4075]
[1725639651359,1.1912,127.84,127.76,5.323]
[1725639651658,1.1912,127.84,127.76,1.4075]
[1725639651859,3.9143,127.81,127.77,3.9152]
[1725639652066,1.1912,127.84,127.76,1.4075]
[1725639652261,3.9152,127.78,127.76,1.4075]
[1725639652757,3.9152,127.78,127.75,1.3023]
[1725639652758,3.9157,127.76,127.59,56.9521]
[1725639652961,3.9157,127.76,127.67,4.1213]
[1725639653368,3.9157,127.76,127.72,3.9167]
[1725639653766,45.19,127.81,127.72,3.82372702]
[1725639653962,45.19,127.83,127.67,4.1213]
[1725639654360,3.9154,127.77,127.74,3.9161]
[1725639655864,3.9145,127.8,127.77,3.9152]
[1725639656067,1.1912,127.84,127.76,45.19]
[1725639656465,1.1912,127.84,127.76,49.1055]